bitfinex/quotes_BTCUSD_20250512
["timestamp","ask_amount","ask_price","bid_price","bid_amount"]
[1747061657266,1.70070305,102850.0,102840.0,0.00104]
[1747061657535,0.34972365,102840.0,102820.0,0.0154254]
[1747061657764,0.6953608,102800.0,102790.0,0.0002]
[1747061657987,1.48660127,102800.0,102790.0,0.0002]
[1747061658243,0.98256688,102800.0,102790.0,0.0002]
[1747061658474,1.74262688,102800.0,102790.0,0.0002]
[1747061658677,1.83848118,102800.0,102790.0,0.0002]
[1747061658895,1.89682118,102800.0,102790.0,0.0002]
[1747061659117,1.89982118,102800.0,102790.0,0.0002]
[1747061659343,1.84148118,102800.0,102790.0,0.0002]
[1747061660191,1.90282118,102800.0,102790.0,0.0002]
[1747061661062,1.89282118,102800.0,102790.0,0.0002]
[1747061661491,1.90282118,102800.0,102790.0,0.0002]
[1747061661909,1.84448118,102800.0,102790.0,0.0002]
[1747061663273,1.94448118,102800.0,102790.0,0.0002]
[1747061663614,1.64448118,102800.0,102790.0,0.0002]
[1747061663870,1.12608118,102800.0,102790.0,0.0002]
[1747061664032,2.06428118,102800.0,102790.0,0.0002]
[1747061664618,2.06128118,102800.0,102790.0,0.0002]
[1747061664838,2.06328118,102800.0,102790.0,0.0002]
[1747061665115,2.06928118,102800.0,102790.0,0.0002]
[1747061666648,1.27324071,102800.0,102790.0,0.0002]
[1747061666856,2.11000118,102800.0,102790.0,0.0002]
[1747061667078,2.07693986,102800.0,102790.0,0.0002]
[1747061667493,2.06693986,102800.0,102790.0,0.0002]
[1747061667735,2.07693986,102800.0,102790.0,0.0002]
[1747061667963,2.05918071,102800.0,102790.0,0.0002]
[1747061668579,2.04918071,102800.0,102790.0,0.0002]
[1747061668790,2.04910071,102800.0,102790.0,0.0002]
[1747061669210,2.32702118,102800.0,102790.0,0.0002]
[1747061670950,2.04910071,102800.0,102790.0,0.0002]
[1747061671187,2.04898071,102800.0,102790.0,0.0002]
[1747061672156,2.10732071,102800.0,102790.0,0.0002]
[1747061672390,0.43996071,102800.0,102790.0,0.0002]
[1747061672599,0.68377986,102800.0,102790.0,0.0002]
[1747061673006,0.66949425,102800.0,102790.0,0.0002]
[1747061673223,0.56949425,102800.0,102790.0,0.0002]
[1747061674066,0.56449425,102800.0,102790.0,0.0002]
[1747061674284,0.56649425,102800.0,102790.0,0.0002]
[1747061674498,0.56637425,102800.0,102790.0,0.0002]
[1747061674972,0.56037425,102800.0,102790.0,0.0002]
[1747061675491,0.84129472,102800.0,102790.0,0.0002]
[1747061676346,0.56337425,102800.0,102790.0,0.0002]
[1747061676788,0.88773557,102800.0,102790.0,0.0002]
[1747061677226,0.6098151,102800.0,102790.0,0.0002]
[1747061677671,0.88773557,102800.0,102790.0,0.0002]
[1747061678354,0.88473557,102800.0,102790.0,0.0002]
[1747061678569,0.88773557,102800.0,102790.0,0.0002]
[1747061678776,0.89173557,102800.0,102790.0,0.0002]
[1747061680379,1.19173557,102800.0,102790.0,0.0002]
[1747061681100,0.9138151,102800.0,102790.0,0.0002]
[1747061681333,1.19173557,102800.0,102790.0,0.0002]
[1747061681554,0.89927425,102800.0,102790.0,0.0002]
[1747061681789,0.86737425,102800.0,102790.0,0.0002]
[1747061682216,1.14529472,102800.0,102790.0,0.0002]
[1747061683670,0.86737425,102800.0,102790.0,0.0002]
[1747061683930,0.56737425,102800.0,102790.0,0.0002]
[1747061684186,0.56685425,102800.0,102790.0,0.0002]
[1747061684421,0.30913425,102800.0,102790.0,0.0002]
[1747061684622,0.56681425,102800.0,102790.0,0.0002]
[1747061685937,0.30913425,102800.0,102790.0,0.0002]
[1747061686266,0.66492876,102800.0,102790.0,0.0002]
[1747061686482,0.93179557,102800.0,102790.0,0.0002]
[1747061686937,0.6538751,102800.0,102790.0,0.0002]
[1747061687356,0.93179557,102800.0,102790.0,0.0002]
[1747061688447,0.95823823,102800.0,102790.0,0.0002]
[1747061688867,1.25681823,102800.0,102790.0,0.0002]
[1747061691271,1.59681823,102800.0,102790.0,0.0002]
[1747061691689,1.56571823,102800.0,102790.0,0.0002]
[1747061693474,1.28779776,102800.0,102790.0,0.0002]
[1747061693698,0.99011776,102800.0,102790.0,0.0002]
[1747061693918,0.59285691,102800.0,102790.0,0.0002]
[1747061694833,0.59277691,102800.0,102790.0,0.0333]
[1747061695266,0.56633425,102800.0,102790.0,0.0333]
[1747061698952,0.30913425,102800.0,102790.0,0.0333]
[1747061699902,0.30913425,102800.0,102790.0,0.0662]
[1747061701105,0.12430812,102800.0,102790.0,0.56787715]
[1747061701381,0.23273368,102800.0,102790.0,0.57760524]
[1747061701628,0.03818097,102800.0,102790.0,0.58733258]
[1747061701879,0.0097263,102810.0,102800.0,0.22373425]
[1747061702121,0.22371297,102810.0,102800.0,0.57395916]
[1747061702410,0.20426028,102810.0,102800.0,0.36967911]
[1747061703344,0.20426028,102810.0,102800.0,0.32999862]
[1747061703905,0.20526028,102810.0,102800.0,0.32999862]
[1747061704122,0.20526028,102810.0,102800.0,0.60791909]
[1747061704333,0.30111458,102810.0,102800.0,0.04163862]
[1747061704760,0.29111458,102810.0,102800.0,0.04163862]
[1747061704978,0.29311458,102810.0,102800.0,0.04163862]
[1747061705197,0.29311458,102810.0,102800.0,0.00963862]
[1747061706033,0.29311458,102810.0,102800.0,0.04063862]
[1747061706654,0.29311458,102810.0,102800.0,0.00963862]
[1747061709611,0.29311458,102810.0,102800.0,0.28755909]
[1747061710273,0.29311458,102810.0,102800.0,0.00963862]
[1747061710903,0.20427995,102800.0,102790.0,0.0002]
[1747061711124,0.33323425,102800.0,102790.0,0.0002]
[1747061711765,0.30013425,102800.0,102790.0,0.27812047]
[1747061711978,0.30013425,102800.0,102790.0,0.0327]
[1747061711979,0.30113425,102800.0,102790.0,0.0327]
[1747061712195,0.30113425,102800.0,102790.0,0.31062047]
[1747061712196,0.31186187,102800.0,102790.0,0.31062047]
[1747061712411,0.21600757,102800.0,102790.0,0.31062047]
[1747061712616,0.21600757,102800.0,102790.0,0.34122047]
[1747061712821,0.21600757,102800.0,102790.0,0.0327]
[1747061713051,0.31186187,102800.0,102790.0,0.0002]
[1747061713899,0.34316187,102800.0,102790.0,0.0002]
[1747061715731,0.31186187,102800.0,102790.0,0.0002]
[1747061718727,0.34346187,102800.0,102790.0,0.0002]
[1747061719430,0.31186187,102800.0,102790.0,0.0002]
[1747061720863,0.56794187,102800.0,102790.0,0.0002]
[1747061721340,0.56790187,102800.0,102790.0,0.0002]
[1747061722139,0.59800187,102800.0,102790.0,0.0002]
[1747061723568,0.56790187,102800.0,102790.0,0.0002]
[1747061724028,0.31186187,102800.0,102790.0,0.0002]
[1747061724244,0.56782187,102800.0,102790.0,0.31112047]
[1747061724454,0.31186187,102800.0,102790.0,0.31112047]
[1747061724666,0.56782187,102800.0,102790.0,0.31112047]
[1747061724880,0.31186187,102800.0,102790.0,0.31112047]
[1747061725085,0.31186187,102800.0,102790.0,0.32075909]
[1747061725289,0.31186187,102800.0,102790.0,0.04283862]
[1747061725518,0.31186187,102800.0,102790.0,0.32075909]
[1747061726939,0.31186187,102800.0,102790.0,0.00983862]
[1747061727146,0.34266187,102800.0,102790.0,0.0002]
[1747061727350,0.31186187,102800.0,102790.0,0.0002]
[1747061727967,0.31186187,102800.0,102790.0,0.31092047]
[1747061729240,0.31186187,102800.0,102790.0,0.32055909]
[1747061730317,0.31186187,102800.0,102790.0,0.28775909]
[1747061730524,0.31186187,102800.0,102790.0,0.0002]
[1747061731601,0.34346187,102800.0,102790.0,0.0002]
[1747061732045,0.37486187,102800.0,102790.0,0.0002]
[1747061732677,0.34346187,102800.0,102790.0,0.0002]
[1747061733129,0.31186187,102800.0,102790.0,0.0002]
[1747061733329,0.62980187,102800.0,102790.0,0.0002]
[1747061733535,0.59790187,102800.0,102790.0,0.0002]
[1747061733984,0.90782234,102800.0,102790.0,0.0002]
[1747061734599,0.90774234,102800.0,102790.0,0.0002]
[1747061734805,0.62982187,102800.0,102790.0,0.0002]
[1747061735639,0.59782187,102800.0,102790.0,0.0002]
[1747061735856,0.56742187,102800.0,102790.0,0.0002]
[1747061738048,1.20892234,102800.0,102790.0,0.0002]
[1747061738911,0.93346319,102800.0,102790.0,0.0002]
[1747061739777,0.93246319,102800.0,102790.0,0.0002]
[1747061739979,0.65354272,102800.0,102790.0,0.0002]
[1747061740197,0.96902319,102800.0,102790.0,0.0002]
[1747061740404,1.48054319,102800.0,102790.0,0.0002]
[1747061740615,1.48254319,102800.0,102790.0,0.0002]
[1747061741093,0.57022187,102800.0,102790.0,0.0002]
[1747061741312,0.31486187,102800.0,102790.0,0.0002]
[1747061741583,0.57018187,102800.0,102790.0,0.0318]
[1747061741841,0.31486187,102800.0,102790.0,0.0318]
[1747061743172,0.31486187,102800.0,102790.0,0.34042047]
[1747061743391,0.21900757,102800.0,102790.0,0.53499192]
[1747061743609,0.01472696,102800.0,102790.0,1.1788654]
[1747061743823,0.03218125,102800.0,102790.0,1.4350654]
[1747061744047,0.02918125,102800.0,102790.0,1.4350654]
[1747061744264,0.03990868,102800.0,102790.0,1.4350654]
[1747061744476,0.05063621,102800.0,102790.0,1.4350654]
[1747061744737,0.0506363,102800.0,102790.0,1.4350654]
[1747061744949,0.04090849,102800.0,102790.0,1.4350654]
[1747061745165,0.002,102800.0,102790.0,1.8709197]
[1747061745377,0.001,102800.0,102790.0,1.8709197]
[1747061745583,0.22369254,102820.0,102810.0,0.23626009]
[1747061745787,0.22369254,102820.0,102810.0,2.19807427]
[1747061746007,0.21396709,102820.0,102810.0,1.29994209]
[1747061746211,0.21396709,102820.0,102810.0,1.03828969]
[1747061746422,0.20424146,102820.0,102810.0,1.09098909]
[1747061746640,0.20424146,102820.0,102810.0,1.29524937]
[1747061747043,0.20424146,102820.0,102810.0,1.09098909]
[1747061747251,0.20524146,102820.0,102810.0,1.09198909]
[1747061747725,0.20524146,102820.0,102810.0,0.89624937]
[1747061747952,0.21496691,102820.0,102810.0,0.89624937]
[1747061748350,0.21496691,102820.0,102810.0,1.29624937]
[1747061748601,0.01072516,102820.0,102810.0,1.41155617]
[1747061748816,0.02045004,102820.0,102810.0,1.69920265]
[1747061749037,0.002,102820.0,102810.0,2.29520265]
[1747061749268,0.01172488,102820.0,102810.0,2.29520265]
[1747061749492,0.001,102820.0,102810.0,2.30420265]
[1747061749934,0.001,102820.0,102810.0,2.30520265]
[1747061750160,0.001,102820.0,102810.0,2.3197435]
[1747061750369,0.002,102820.0,102810.0,2.3227435]
[1747061750582,0.2042013,102840.0,102830.0,0.28706917]
[1747061750583,0.2236477,102840.0,102830.0,0.28706917]
[1747061750793,0.23337088,102840.0,102830.0,2.50051356]
[1747061751000,0.21392424,102840.0,102830.0,1.04504515]
[1747061751254,0.21392424,102840.0,102830.0,1.06449434]
[1747061751476,0.21392424,102840.0,102830.0,1.44504515]
[1747061751691,0.21392424,102840.0,102830.0,1.25054939]
[1747061751919,0.21392424,102840.0,102830.0,1.46449462]
[1747061752343,0.19447685,102840.0,102830.0,1.25254939]
[1747061752788,0.19447685,102840.0,102830.0,0.87877462]
[1747061752996,0.19447685,102840.0,102830.0,1.15669509]
[1747061753294,0.19447685,102840.0,102830.0,1.17227774]
[1747061753533,0.19447685,102840.0,102830.0,1.47235249]
[1747061754855,0.03889364,102840.0,102830.0,1.83932542]
[1747061755120,0.23337049,102840.0,102830.0,1.51007774]
[1747061755361,0.21392414,102840.0,102830.0,0.82842127]
[1747061755597,0.21392414,102840.0,102830.0,0.73564174]
[1747061756302,0.21392414,102840.0,102830.0,0.33564174]
[1747061757955,0.21392414,102840.0,102830.0,0.34997012]
[1747061758292,0.20420059,102840.0,102830.0,0.34997012]
[1747061759142,0.20418064,102850.0,102840.0,0.0301]
[1747061759343,0.20418064,102850.0,102840.0,0.30802047]
[1747061759563,0.01944512,102850.0,102840.0,0.83276499]
[1747061759720,0.21390306,102850.0,102840.0,2.71728753]
[1747061760135,0.01944512,102850.0,102840.0,2.72701099]
[1747061760377,0.03989006,102850.0,102840.0,2.73673426]
[1747061760554,0.001,102850.0,102840.0,3.10577746]
[1747061760757,0.001,102850.0,102840.0,3.20163176]
[1747061760972,0.01272214,102850.0,102840.0,3.45603176]
[1747061761164,0.03216698,102850.0,102840.0,3.45603176]
[1747061761372,0.02044447,102850.0,102840.0,3.36935776]
[1747061761577,0.01944447,102850.0,102840.0,3.36935776]
[1747061761779,0.02916698,102850.0,102840.0,3.37035776]
[1747061761962,0.03888968,102850.0,102840.0,3.37235776]
[1747061762387,0.02916698,102850.0,102840.0,3.37235776]
[1747061762594,0.03888968,102850.0,102840.0,3.37235776]
[1747061762815,0.02916698,102850.0,102840.0,3.37235776]
[1747061763017,0.03888968,102850.0,102840.0,3.38689861]
[1747061763232,0.00972214,102850.0,102840.0,3.17414261]
[1747061763447,0.02916688,102850.0,102840.0,3.17414261]
[1747061763912,0.03888912,102850.0,102840.0,3.17414261]
[1747061764149,0.00972157,102860.0,102850.0,0.62652529]
[1747061764390,0.22360366,102860.0,102850.0,2.73212424]
[1747061764626,0.22360366,102860.0,102850.0,2.51822109]
[1747061764845,0.2041608,102860.0,102850.0,1.45594928]
[1747061765070,0.2041608,102860.0,102850.0,1.83357208]
[1747061765310,0.2061608,102860.0,102850.0,1.84329469]
[1747061765535,0.2071608,102860.0,102850.0,1.84329469]
[1747061765759,0.2071608,102860.0,102850.0,1.60959208]
[1747061766003,0.2385608,102860.0,102850.0,0.00963862]
[1747061766255,0.3673151,102860.0,102850.0,0.00963862]
[1747061766696,0.21392387,102840.0,102830.0,0.29442965]
[1747061766907,0.21392387,102840.0,102830.0,0.26451862]
[1747061767134,0.21392387,102840.0,102830.0,0.34]
[1747061767342,0.20424022,102820.0,102810.0,0.00963862]
[1747061767551,0.22371221,102810.0,102800.0,0.91924755]
[1747061767810,0.00972469,102830.0,102820.0,0.0194508]
[1747061767988,0.23341571,102820.0,102810.0,0.24628648]
[1747061768195,0.24314144,102820.0,102810.0,2.01171168]
[1747061768419,0.24314144,102820.0,102810.0,2.03709216]
[1747061768638,0.29133115,102840.0,102830.0,0.23912045]
[1747061768639,0.2353705,102840.0,102830.0,0.23912045]
[1747061768851,0.2353705,102840.0,102830.0,0.35263862]
[1747061768852,0.21592424,102840.0,102830.0,0.35263862]
[1747061769105,0.21394485,102830.0,102820.0,0.00963862]
[1747061769335,0.21394485,102830.0,102820.0,0.34963862]
[1747061769549,0.21394485,102830.0,102820.0,0.00963862]
[1747061770036,0.21394485,102830.0,102820.0,0.55582393]
[1747061770262,0.21394485,102830.0,102820.0,0.56614362]
[1747061770497,0.21394485,102830.0,102820.0,0.46766062]
[1747061770719,0.21394485,102830.0,102820.0,0.34963862]
[1747061771647,0.21594485,102830.0,102820.0,0.01763862]
[1747061771861,0.37449915,102830.0,102820.0,0.008]
[1747061772790,0.34229915,102830.0,102820.0,0.008]
[1747061773056,0.21396567,102820.0,102810.0,0.21991352]
[1747061773269,0.23341656,102820.0,102810.0,1.76822404]
[1747061773481,0.21396595,102820.0,102810.0,0.97371735]
[1747061773687,0.21396595,102820.0,102810.0,0.39207552]
[1747061774211,0.20424041,102820.0,102810.0,0.38234894]
[1747061774374,0.20524041,102820.0,102810.0,0.15771637]
[1747061774680,0.25851468,102820.0,102810.0,0.01765437]
[1747061774849,0.22601468,102820.0,102810.0,0.01765437]
[1747061775086,0.35526898,102820.0,102810.0,0.004]
[1747061776011,0.82378081,102820.0,102810.0,0.002]
[1747061776658,0.35526898,102820.0,102810.0,0.003]
[1747061776885,0.35426898,102820.0,102810.0,0.001]
[1747061777102,1.14232166,102820.0,102810.0,0.002]
[1747061777325,1.48232166,102820.0,102810.0,0.002]
[1747061777756,1.26644983,102820.0,102810.0,0.002]
[1747061777977,1.26544983,102820.0,102810.0,0.001]
[1747061778408,1.01480983,102820.0,102810.0,0.002]
[1747061778632,1.22204983,102820.0,102810.0,0.002]
[1747061778845,1.20750898,102820.0,102810.0,0.002]
[1747061779064,0.86750898,102820.0,102810.0,0.002]
[1747061779321,0.61386898,102820.0,102810.0,0.002]
[1747061779540,0.32786898,102820.0,102810.0,0.002]
[1747061779771,0.29736898,102820.0,102810.0,0.002]
[1747061779998,0.007,102820.0,102810.0,1.20624947]
[1747061780211,0.02644995,102820.0,102810.0,1.23580432]
[1747061780639,0.007,102820.0,102810.0,1.23580432]
[1747061780858,0.003,102820.0,102810.0,1.76075862]
[1747061781087,0.001,102820.0,102810.0,1.77729947]
[1747061781526,0.002,102820.0,102810.0,1.31078764]
[1747061781744,0.002,102820.0,102810.0,1.77729947]
[1747061781959,0.003,102820.0,102810.0,1.78129947]
[1747061782178,0.01172497,102820.0,102810.0,1.77729947]
[1747061782412,0.01072497,102820.0,102810.0,1.77729947]
[1747061782619,0.01172488,102820.0,102810.0,1.78129947]
[1747061782833,0.01072488,102820.0,102810.0,1.77829947]
[1747061783046,0.02044995,102820.0,102810.0,1.77829947]
[1747061783283,0.01172488,102820.0,102810.0,1.78229947]
[1747061783506,0.02609632,102830.0,102810.0,1.76284659]
[1747061783757,0.02609632,102830.0,102820.0,4.89038222]
[1747061783971,0.06763219,102850.0,102840.0,0.72465906]
[1747061783972,0.05791015,102850.0,102840.0,0.72465906]
[1747061784177,0.06763238,102850.0,102840.0,4.14891285]
[1747061784393,0.05791015,102850.0,102840.0,4.54891285]
[1747061784604,0.05791015,102850.0,102840.0,1.54891285]
[1747061784824,0.05791015,102850.0,102840.0,4.54891285]
[1747061785064,0.05791015,102850.0,102840.0,4.88891285]
[1747061785281,0.05891015,102850.0,102840.0,4.89091285]
[1747061785496,0.05891015,102850.0,102840.0,4.90091285]
[1747061785735,0.03752117,102850.0,102840.0,4.90091285]
[1747061785959,0.03652117,102850.0,102840.0,4.88891285]
[1747061786127,0.03652117,102850.0,102840.0,5.14219285]
[1747061786375,0.03752117,102850.0,102840.0,5.14619285]
[1747061786570,0.15591194,102870.0,102860.0,0.28960375]
[1747061786770,0.019437,102890.0,102880.0,0.56356056]
[1747061787030,0.00971836,102890.0,102880.0,3.55972431]
[1747061787187,0.02915592,102890.0,102880.0,3.98876373]
[1747061787368,0.019437,102890.0,102880.0,3.98876373]
[1747061787555,0.03887475,102890.0,102880.0,3.98876373]
[1747061787759,0.19446604,102910.0,102890.0,0.20410137]
[1747061787982,0.0291561,102890.0,102880.0,0.96381306]
[1747061788183,0.0291561,102890.0,102880.0,0.93221306]
[1747061788391,0.0301561,102890.0,102880.0,0.93221306]
[1747061788623,0.0301561,102890.0,102880.0,3.94798196]
[1747061788826,0.04959395,102890.0,102880.0,3.95770193]
[1747061789272,0.21379922,102900.0,102890.0,0.56353884]
[1747061789487,0.21379922,102900.0,102890.0,3.07519431]
[1747061789488,0.00971732,102900.0,102890.0,3.07519431]
[1747061789702,0.029153,102900.0,102890.0,3.07519431]
[1747061789912,0.03887041,102900.0,102890.0,3.06547595]
[1747061790123,0.04858848,102900.0,102890.0,3.4751945]
[1747061790331,0.02915309,102900.0,102890.0,3.48491295]
[1747061790548,0.00971741,102900.0,102890.0,3.48491295]
[1747061790766,0.01943511,102900.0,102890.0,3.50729412]
[1747061791013,0.22349511,102910.0,102900.0,0.55379931]
[1747061791236,0.21377855,102910.0,102900.0,2.19392262]
[1747061791460,0.01943398,102910.0,102900.0,2.40772174]
[1747061791693,0.02914723,102920.0,102910.0,0.57321204]
[1747061791908,0.23318948,102920.0,102910.0,2.78740256]
[1747061792148,0.23318948,102920.0,102910.0,2.79711931]
[1747061792367,0.23318948,102920.0,102910.0,2.80683597]
[1747061792580,0.23319005,102920.0,102910.0,2.78740256]
[1747061792795,0.23719005,102920.0,102910.0,3.20683597]
[1747061793002,0.23719005,102920.0,102910.0,3.19711931]
[1747061793230,0.0264319,102920.0,102910.0,3.20683597]
[1747061793469,0.03614714,102920.0,102910.0,3.31240683]
[1747061793687,0.02643114,102920.0,102910.0,3.31240683]
[1747061793901,0.03614695,102920.0,102910.0,3.31240683]
[1747061794126,0.03214695,102920.0,102910.0,3.31240683]
[1747061794356,0.24590491,102920.0,102910.0,3.30269027]
[1747061794559,0.23318948,102920.0,102910.0,3.28425695]
[1747061794783,0.23318948,102920.0,102910.0,3.08119535]
[1747061795001,0.21375796,102920.0,102910.0,3.1510317]
[1747061795190,0.21375796,102920.0,102910.0,3.16074873]
[1747061795386,0.21375796,102920.0,102910.0,3.17046586]
[1747061795630,0.20404196,102920.0,102910.0,1.398683]
[1747061796077,0.20404196,102920.0,102910.0,0.983208]
[1747061796281,0.20404196,102920.0,102910.0,0.6810697]
[1747061796496,0.19432568,102920.0,102910.0,0.730448]
[1747061796713,0.19432568,102920.0,102910.0,0.79950179]
[1747061796934,0.22347386,102920.0,102910.0,1.86262752]
[1747061797146,0.22347386,102920.0,102910.0,1.85291077]
[1747061797361,0.20405577,102950.0,102930.0,0.00971515]
[1747061797571,0.20400655,102940.0,102930.0,0.81915045]
[1747061797799,0.20400655,102940.0,102930.0,0.51777362]
[1747061798010,0.20400655,102940.0,102930.0,0.55366077]
[1747061798227,0.20400655,102940.0,102930.0,0.66639092]
[1747061798441,0.20400655,102940.0,102930.0,0.68582093]
[1747061798922,0.20400655,102940.0,102930.0,0.69553579]
[1747061799136,0.20600655,102940.0,102930.0,0.69553579]
[1747061799352,0.20800655,102940.0,102930.0,0.65667577]
[1747061799531,0.19829225,102940.0,102930.0,0.55366067]
[1747061799769,0.19829225,102940.0,102930.0,0.36544067]
[1747061800197,0.19829225,102940.0,102930.0,0.76544067]
[1747061800403,0.19829225,102940.0,102930.0,0.77515601]
[1747061800616,0.19829225,102940.0,102930.0,0.76544067]
[1747061801047,0.25959225,102940.0,102930.0,0.36544067]
[1747061801264,0.25959225,102940.0,102930.0,0.02544067]
[1747061802379,0.22949225,102940.0,102930.0,0.02544067]
[1747061803723,0.26269225,102940.0,102930.0,0.02544067]
[1747061803943,0.22949225,102940.0,102930.0,0.02544067]
[1747061805771,0.19829225,102940.0,102930.0,0.02544067]
[1747061806216,0.004,102940.0,102930.0,1.89124133]
[1747061806437,0.02342737,102940.0,102930.0,1.91844281]
[1747061806677,0.03314148,102940.0,102930.0,1.94062814]
[1747061806886,0.2371438,102940.0,102930.0,2.28929851]
[1747061807106,0.21571643,102940.0,102930.0,1.67688772]
[1747061807317,0.21371643,102940.0,102930.0,1.67688772]
[1747061807542,0.21471643,102940.0,102930.0,1.68660287]
[1747061807753,0.20600232,102940.0,102930.0,1.67688782]
[1747061807966,0.20600232,102940.0,102930.0,1.68660306]
[1747061808182,0.19628793,102940.0,102930.0,1.11889767]
[1747061808393,0.19628793,102940.0,102930.0,1.01880067]
[1747061808610,0.01171373,102940.0,102930.0,1.42023868]
[1747061808846,0.23514361,102940.0,102930.0,1.37852372]
[1747061809077,0.21571624,102940.0,102930.0,1.17450167]
[1747061809302,0.21571624,102940.0,102930.0,1.37852372]
[1747061809518,0.21571624,102940.0,102930.0,1.23253787]
[1747061809722,0.21571624,102940.0,102930.0,1.44540888]
[1747061809940,0.21571624,102940.0,102930.0,1.69736888]
[1747061810168,0.03114185,102940.0,102930.0,1.70708355]
[1747061810405,0.04085624,102940.0,102930.0,1.70708355]
[1747061810643,0.23514417,102940.0,102930.0,1.70708355]
[1747061810859,0.04085624,102940.0,102930.0,1.70708308]
[1747061811061,0.03114185,102940.0,102930.0,1.69736841]
[1747061811260,0.01171373,102940.0,102930.0,1.70708308]
[1747061811506,0.02142737,102940.0,102930.0,2.30504921]
[1747061811754,0.02142718,102940.0,102930.0,2.30504921]
[1747061812252,0.03114091,102940.0,102930.0,2.30504921]
[1747061812503,0.03114101,102940.0,102930.0,2.30504921]
[1747061812745,0.002,102940.0,102930.0,2.30504921]
[1747061813244,0.002,102940.0,102930.0,2.34989006]
[1747061813731,0.001,102940.0,102930.0,2.34989006]
[1747061813968,0.00971354,102940.0,102930.0,2.34989006]
[1747061814185,0.03885191,102950.0,102940.0,0.22342997]
[1747061814414,0.02913865,102950.0,102940.0,1.95954612]
[1747061814636,0.24283432,102950.0,102940.0,1.95954612]
[1747061814851,0.04856526,102950.0,102940.0,1.95954612]
[1747061815126,0.24283517,102950.0,102940.0,2.35954612]
[1747061815337,0.22540912,102950.0,102940.0,2.30731838]
[1747061815551,0.21569586,102950.0,102940.0,0.88883185]
[1747061815749,0.21569586,102950.0,102940.0,0.68750102]
[1747061815953,0.21569586,102950.0,102940.0,0.600525]
[1747061816153,0.21569586,102950.0,102940.0,0.4]
[1747061816371,0.21569586,102950.0,102940.0,0.88242293]
[1747061816569,0.24649586,102950.0,102940.0,0.65192]
[1747061816779,0.24649586,102950.0,102940.0,0.819915]
[1747061816983,0.24649586,102950.0,102940.0,0.65192]
[1747061817604,0.24649586,102950.0,102940.0,0.819915]
[1747061818075,0.24649586,102950.0,102940.0,0.65192]
[1747061818492,0.24649586,102950.0,102940.0,0.940035]
[1747061818915,0.24649586,102950.0,102940.0,0.95447509]
[1747061819413,0.21569586,102950.0,102940.0,0.95447509]
[1747061819616,0.002,102950.0,102940.0,1.63770316]
[1747061819824,0.21569586,102950.0,102940.0,1.64741727]
[1747061820040,0.22540827,102950.0,102940.0,1.63770335]
[1747061820249,0.22540827,102950.0,102940.0,1.64741736]
[1747061820468,0.22540827,102950.0,102940.0,1.62798915]
[1747061820703,0.22540893,102950.0,102940.0,1.42398692]
[1747061820889,0.21569586,102950.0,102940.0,1.42398692]
[1747061821107,0.21569586,102950.0,102940.0,1.64741736]
[1747061821328,0.20598251,102950.0,102940.0,0.66636009]
[1747061821534,0.23848251,102950.0,102940.0,0.66636009]
[1747061821760,0.24737536,102950.0,102940.0,1.16190002]
[1747061821978,0.23766191,102950.0,102940.0,0.66636009]
[1747061822425,0.23766191,102950.0,102940.0,1.05124409]
[1747061822630,0.23766191,102950.0,102940.0,0.99463202]
[1747061822840,0.23766191,102950.0,102940.0,1.00434641]
[1747061823294,0.23766191,102950.0,102940.0,1.01406071]
[1747061823948,0.2343015,102950.0,102940.0,1.02377482]
[1747061824173,0.01089285,102950.0,102940.0,1.49328665]
[1747061824451,0.04003178,102950.0,102940.0,1.51271439]
[1747061824888,0.24401419,102950.0,102940.0,1.51271439]
[1747061825105,0.25372764,102950.0,102940.0,1.51271439]
[1747061825317,0.03031852,102950.0,102940.0,1.51271439]
[1747061825537,0.04003178,102950.0,102940.0,1.51271439]
[1747061825821,0.04974513,102950.0,102940.0,1.51271439]
[1747061826000,0.04003178,102950.0,102940.0,1.51271439]
[1747061826468,0.24401429,102950.0,102940.0,1.50300066]
[1747061826685,0.24401429,102950.0,102940.0,0.77185482]
[1747061826892,0.24401429,102950.0,102940.0,1.02373482]
[1747061826893,0.2343016,102950.0,102940.0,1.02373482]
[1747061827314,0.2343016,102950.0,102940.0,1.01402071]
[1747061827533,0.2343016,102950.0,102940.0,1.02373482]
[1747061827950,0.2343016,102950.0,102940.0,1.02373491]
[1747061828153,0.22458862,102950.0,102940.0,1.03344902]
[1747061828340,0.21487536,102950.0,102940.0,1.03344902]
[1747061828915,0.21487536,102950.0,102940.0,1.04316294]
[1747061829119,0.21487536,102950.0,102940.0,1.01402071]
[1747061829523,0.23606191,102950.0,102940.0,0.54842409]
[1747061829738,0.26926191,102950.0,102940.0,0.11575009]
[1747061829960,0.26926191,102950.0,102940.0,0.35444009]
[1747061830126,0.26730213,102940.0,102930.0,0.01580205]
[1747061830328,0.23502196,102930.0,102920.0,0.41952]
[1747061830530,0.22530681,102930.0,102900.0,0.69447528]
[1747061830729,0.01943303,102910.0,102900.0,1.53249681]
[1747061831035,0.03886672,102910.0,102900.0,2.13409432]
[1747061831234,0.03886672,102910.0,102900.0,2.12437681]
[1747061831235,0.24292842,102910.0,102900.0,2.12437681]
[1747061831465,0.03886672,102910.0,102900.0,3.13590732]
[1747061831643,0.03886681,102910.0,102900.0,3.13590732]
[1747061831841,0.23321138,102910.0,102900.0,3.47590732]
[1747061832043,0.03986681,102910.0,102900.0,3.48190732]
[1747061832320,0.03986672,102910.0,102900.0,3.48190732]
[1747061832531,0.03014978,102910.0,102900.0,3.43249832]
[1747061832745,0.001,102910.0,102900.0,3.43249832]
[1747061832966,0.001,102910.0,102900.0,3.46519832]
[1747061833186,0.002,102910.0,102900.0,3.47219832]
[1747061833410,0.001,102910.0,102900.0,3.97491015]
[1747061833641,0.23316706,102930.0,102920.0,0.20404196]
[1747061833859,0.22345239,102930.0,102920.0,1.71401007]
[1747061834083,0.21373743,102930.0,102920.0,1.0666597]
[1747061834296,0.21373743,102930.0,102920.0,1.07637579]
[1747061834492,0.21373743,102930.0,102920.0,1.47637579]
[1747061834727,0.21373743,102930.0,102920.0,1.48909179]
[1747061834928,0.21373743,102930.0,102920.0,0.87251183]
[1747061835134,0.21373743,102930.0,102920.0,1.28874313]
[1747061835343,0.21373743,102930.0,102920.0,1.29845922]
[1747061835759,0.21373743,102930.0,102920.0,1.30817503]
[1747061835986,0.21373743,102930.0,102920.0,1.32749505]
[1747061836203,0.21373743,102930.0,102920.0,0.85798322]
[1747061836412,0.21373743,102930.0,102920.0,0.85798341]
[1747061836589,0.21373743,102930.0,102920.0,0.87741512]
[1747061837080,0.21373743,102930.0,102920.0,0.86769931]
[1747061837742,0.26752219,102930.0,102920.0,0.28687864]
[1747061837962,0.26752219,102930.0,102920.0,0.03495864]
[1747061838621,0.26752219,102930.0,102920.0,0.01563862]
[1747061843727,0.26752219,102930.0,102920.0,0.006]